bitfinex-derivatives/quotes_BNBF0:USTF0_20250309
["timestamp","ask_amount","ask_price","bid_price","bid_amount"]
[1741526754510,0.493,577.75,576.8,0.34674063]
[1741526754710,0.493,577.75,576.81,0.29066574]
[1741526754908,0.493,577.75,576.82,0.34672861]
[1741526755213,0.493,577.75,576.83,0.29066574]
[1741526755414,0.493,577.75,576.83,0.63738834]
[1741526755608,0.493,577.75,576.84,0.29066574]
[1741526756514,0.493,577.75,576.85,0.29062494]
[1741526756717,0.493,577.75,576.84,0.29062494]
[1741526757015,0.493,577.75,576.85,0.29062494]
[1741526757217,0.493,577.75,576.84,0.29062494]
[1741526760116,0.493,577.75,576.85,0.404]
[1741526760311,0.493,577.75,576.86,0.29062494]
[1741526764621,0.493,577.75,576.87,0.34669856]
[1741526764822,0.493,577.75,576.88,0.29062494]
[1741526765220,0.493,577.75,576.89,0.29056973]
[1741526765418,0.493,577.75,576.9,0.34668053]
[1741526765622,0.493,577.75,576.91,0.29056973]
[1741526765820,0.493,577.75,576.92,0.34666851]
[1741526766022,0.493,577.75,576.93,0.29056973]
[1741526766421,0.493,577.75,576.94,0.34665649]
[1741526766621,0.493,577.75,576.95,0.29056973]
[1741526766822,0.493,577.75,576.96,0.34664448]
[1741526767023,0.493,577.75,576.97,0.29056973]
[1741526768024,0.493,577.75,576.98,0.34663246]
[1741526768217,0.493,577.75,576.99,0.29056973]
[1741526768424,0.493,577.75,577.0,0.34662045]
[1741526768722,0.493,577.75,577.01,0.29056973]
[1741526768918,0.493,577.75,577.02,0.34660843]
[1741526769117,0.493,577.75,577.03,0.29056973]
[1741526769320,0.493,577.75,577.04,0.34659642]
[1741526769526,0.493,577.75,577.05,0.29056973]
[1741526770319,0.493,577.75,577.05,0.63716014]
[1741526770526,0.493,577.75,577.06,0.29056973]
[1741526770823,0.493,577.75,577.07,0.29051886]
[1741526771024,0.493,577.75,577.06,0.29051886]
[1741526771223,0.493,577.75,577.07,0.29051886]
[1741526771419,0.493,577.75,577.06,0.29051886]
[1741526773326,0.493,577.75,577.07,0.29051974]
[1741526773621,0.493,577.75,577.08,0.29051974]
[1741526773829,0.493,577.75,577.06,0.29051974]
[1741526774021,0.493,577.75,577.07,0.29051974]
[1741526774220,0.493,577.75,577.06,0.29051974]
[1741526775726,0.30130783,578.05,577.06,0.29051974]
[1741526775926,0.30130783,578.05,577.07,0.3465784]
[1741526776329,0.30130783,578.05,577.08,0.29049776]
[1741526778229,1.27865714,578.52,577.08,0.29049776]
[1741526778433,0.34572169,578.5,577.08,0.29049776]
[1741526778727,0.30124132,578.05,577.07,0.3465784]
[1741526778928,0.507,578.49,577.08,0.29049771]
[1741526779130,0.34573962,578.47,577.08,0.29049771]
[1741526779329,0.31816368,578.46,577.08,0.29049771]
[1741526779529,0.34575157,578.45,577.08,0.29049771]
[1741526779731,0.31816368,578.44,577.08,0.29049771]
[1741526780630,0.34576353,578.43,577.08,0.29049771]
[1741526780824,0.31816368,578.42,577.08,0.29049771]
[1741526781027,0.34577548,578.41,577.08,0.29049771]
[1741526781229,0.31816368,578.4,577.08,0.29049771]
[1741526781425,0.34578744,578.39,577.08,0.29049771]
[1741526781733,0.31816368,578.38,577.08,0.29049771]
[1741526781931,0.3457994,578.37,577.08,0.29049771]
[1741526782132,0.31816368,578.36,577.08,0.29049771]
[1741526782427,0.34581135,578.35,577.08,0.29049771]
[1741526782631,0.31816368,578.34,577.08,0.29049771]
[1741526782831,0.34582331,578.33,577.08,0.29049771]
[1741526783030,0.31816368,578.32,577.08,0.29049771]
[1741526783230,0.34583527,578.31,577.08,0.29049771]
[1741526783431,0.31816487,578.3,577.09,0.29051083]
[1741526783629,0.31816487,578.3,577.08,0.29051083]
[1741526783933,0.34584723,578.29,577.09,0.29051083]
[1741526784232,0.34584723,578.29,577.07,0.3465784]
[1741526784430,0.31816437,578.28,577.08,0.29051038]
[1741526784634,0.61943438,578.28,577.08,0.29051038]
[1741526784830,0.31816437,578.27,577.08,0.29051038]
[1741526785332,0.30127001,578.28,577.07,0.3465784]
[1741526785525,0.31816223,578.27,577.08,0.29050823]
[1741526789535,0.34586518,578.26,577.07,0.3465784]
[1741526790037,0.31816223,578.25,577.07,0.3465784]
[1741526790241,0.34587714,578.24,577.08,0.29052473]
[1741526790439,0.31816223,578.23,577.07,0.3465784]
[1741526791439,0.66404535,578.23,577.08,0.501]
[1741526791638,0.31816223,578.22,577.08,0.501]
[1741526793033,0.34589509,578.21,577.08,0.501]
[1741526793233,0.31816223,578.2,577.08,0.501]
[1741526793838,0.34590705,578.19,577.08,0.501]
[1741526794034,0.31816223,578.18,577.08,0.501]
[1741526794338,0.34591902,578.17,577.08,0.501]
[1741526794535,0.31816223,578.16,577.08,0.501]
[1741526794737,0.34593098,578.15,577.08,0.501]
[1741526794939,0.31816223,578.14,577.08,0.501]
[1741526795139,0.34594295,578.13,577.08,0.501]
[1741526795535,0.31822113,578.12,577.09,0.29056491]
[1741526796640,0.30129609,578.11,577.09,0.29056491]
[1741526796841,0.31822113,578.1,577.09,0.29056491]
[1741526799140,0.51,578.09,577.09,0.29056491]
[1741526799339,0.51,578.09,577.08,0.501]
[1741526799537,0.30129479,578.08,577.08,0.501]
[1741526802345,0.51,578.09,577.08,0.501]
[1741526802545,0.3012974,578.07,577.08,0.501]
[1741526805244,0.51,578.09,577.08,0.501]
[1741526805545,0.3012974,578.06,577.08,0.501]
[1741526808250,0.51,578.09,577.08,0.501]
[1741526808749,0.3012974,578.05,577.08,0.501]
[1741526809344,0.3012974,578.05,577.09,0.29052218]
[1741526810752,0.3012974,578.05,577.08,0.501]
[1741526811351,0.51,578.09,577.08,0.501]
[1741526811553,0.3012974,578.05,577.08,0.501]
[1741526812656,0.3012974,578.05,577.09,0.29048964]
[1741526813650,0.51,578.09,577.1,0.34656038]
[1741526813852,0.51,578.09,577.11,0.29048964]
[1741526814053,0.51,578.09,577.12,0.34654837]
[1741526814253,0.51,578.09,577.13,0.29048964]
[1741526815158,0.51,578.09,577.14,0.34653636]
[1741526815359,0.3012687,578.12,577.15,0.29048964]
[1741526816357,0.31810475,578.11,577.15,0.29048964]
[1741526816558,0.3012687,578.12,577.16,0.29044599]
[1741526816754,0.3012687,578.12,577.15,0.29044599]
[1741526817151,0.3012687,578.12,577.16,0.34652436]
[1741526817355,0.34594295,578.13,577.17,0.29044599]
[1741526817557,0.34594295,578.13,577.18,0.34651235]
[1741526817758,0.34594295,578.13,577.19,0.29044599]
[1741526818156,0.34594295,578.13,577.19,0.63695233]
[1741526818553,0.506,578.12,577.2,0.29044599]
[1741526820357,0.506,578.12,577.19,0.34650634]
[1741526832570,0.30128435,578.11,577.19,0.34650634]
[1741526835269,0.506,578.12,577.19,0.34650634]
[1741526835572,0.30128566,578.1,577.2,0.43]
[1741526838384,0.506,578.12,577.2,0.43]
[1741526838774,0.30127262,578.09,577.2,0.43]
[1741526839983,0.30127262,578.09,577.21,0.29048135]
[1741526840284,0.30127262,578.09,577.22,0.29048343]
[1741526840577,0.30127262,578.09,577.23,0.29048343]
[1741526840778,0.30127262,578.09,577.21,0.29048343]
[1741526841071,0.30127262,578.09,577.2,0.43]
[1741526841283,0.506,578.12,577.2,0.43]
[1741526841672,0.30127262,578.08,577.2,0.43]
[1741526844376,0.34594295,578.13,577.2,0.43]
[1741526844772,0.30127131,578.07,577.2,0.43]
[1741526846785,0.63627131,578.07,577.2,0.43]
[1741526847377,0.335,578.07,577.2,0.43]
[1741526847590,0.30128957,578.06,577.2,0.43]
[1741526850281,0.335,578.07,577.2,0.43]
[1741526850585,0.30128957,578.05,577.2,0.43]
[1741526853286,0.335,578.07,577.2,0.43]
[1741526853480,0.30131175,578.04,577.2,0.43]
[1741526855186,0.31819825,578.03,577.2,0.43]
[1741526856483,0.30131175,578.02,577.2,0.43]
[1741526856988,0.31819825,578.01,577.2,0.43]
[1741526858897,0.3182527,578.0,577.2,0.43]
[1741526859090,0.3182527,578.01,577.2,0.43]
[1741526859291,0.3182527,578.0,577.2,0.43]
[1741526859494,0.3182527,578.06,577.2,0.43]
[1741526859698,0.3013822,578.0,577.2,0.43]
[1741526859886,0.3182527,577.99,577.2,0.43]
[1741526862390,0.335,578.07,577.2,0.43]
[1741526862591,0.30139003,577.98,577.2,0.43]
[1741526862793,0.31825423,577.97,577.2,0.43]
[1741526863087,0.31825423,577.96,577.2,0.43]
[1741526863284,0.31825423,578.06,577.2,0.43]
[1741526863489,0.31825423,578.05,577.2,0.43]
[1741526863689,0.3013809,577.95,577.2,0.43]
[1741526863891,0.31825423,577.94,577.2,0.43]
[1741526864289,0.31825423,577.93,577.2,0.43]
[1741526864490,0.31825423,577.92,577.2,0.43]
[1741526864690,0.31825423,578.03,577.2,0.43]
[1741526865598,0.30138481,578.02,577.2,0.43]
[1741526865994,0.31827153,578.01,577.2,0.43]
[1741526866796,0.30138481,578.02,577.2,0.43]
[1741526866991,0.3182953,578.0,577.2,0.43]
[1741526867296,0.3182953,577.99,577.2,0.43]
[1741526867494,0.3182953,578.01,577.2,0.43]
[1741526867689,0.3182953,578.0,577.2,0.43]
[1741526867895,0.3182953,577.99,577.2,0.43]
[1741526868093,0.3182953,577.98,577.2,0.43]
[1741526868290,0.3182953,578.01,577.2,0.43]
[1741526868495,0.3182953,578.0,577.2,0.43]
[1741526868695,0.30139264,577.97,577.2,0.43]
[1741526868896,0.3182953,577.96,577.2,0.43]
[1741526871493,0.30140178,577.95,577.2,0.43]
[1741526871698,0.3182953,577.94,577.2,0.43]
[1741526872696,0.30140178,577.95,577.2,0.43]
[1741526876002,0.69740178,577.95,577.2,0.43]
[1741526877399,0.396,577.95,577.2,0.43]
[1741526877700,0.30140439,577.94,577.2,0.43]
[1741526880304,0.396,577.95,577.2,0.43]
[1741526880805,0.30140439,577.93,577.2,0.43]
[1741526883407,0.396,577.95,577.2,0.43]
[1741526883606,0.30140439,577.92,577.2,0.43]
[1741526884806,0.396,577.95,576.85,0.30140439]
[1741526885002,0.396,577.95,576.86,0.63722558]
[1741526885206,0.396,577.95,576.85,0.30140439]
[1741526885207,0.396,577.95,576.87,0.63721957]
[1741526885406,0.396,577.95,576.88,0.34669255]
[1741526885706,0.396,577.95,576.89,0.29052101]
[1741526885906,0.396,577.95,576.9,0.34668053]
[1741526886107,0.396,577.95,576.91,0.29052101]
[1741526886306,0.396,577.95,576.92,0.34666851]
[1741526886505,0.396,577.95,576.93,0.29052101]
[1741526887508,0.396,577.95,576.94,0.34665649]
[1741526887704,0.396,577.95,576.95,0.29052101]
[1741526887901,0.396,577.95,576.95,0.74152101]
[1741526888208,0.396,577.95,576.96,0.29052101]
[1741526888509,0.396,577.95,576.97,0.34663847]
[1741526888707,0.396,577.95,576.98,0.29052101]
[1741526888904,0.396,577.95,576.99,0.34662645]
[1741526889203,0.396,577.95,577.0,0.29052101]
[1741526889403,0.396,577.95,577.01,0.34661444]
[1741526889806,0.396,577.95,577.02,0.29052101]
[1741526890310,0.396,577.95,577.03,0.34660242]
[1741526890511,0.396,577.95,577.04,0.29052101]
[1741526890906,0.396,577.95,577.05,0.34659041]
[1741526891211,0.396,577.95,577.06,0.29052101]
[1741526891410,0.396,577.95,577.07,0.3465784]
[1741526891710,0.396,577.95,577.08,0.29052101]
[1741526892909,0.396,577.95,577.07,0.3465784]
[1741526893109,0.396,577.95,577.08,0.29048239]
[1741526893511,0.396,577.95,577.09,0.34656639]
[1741526893710,0.396,577.95,577.1,0.29048239]
[1741526894006,0.396,577.95,577.11,0.34655438]
[1741526894206,0.396,577.95,577.12,0.29048239]
[1741526894406,0.396,577.95,577.13,0.34654237]
[1741526894608,0.396,577.95,577.14,0.29048239]
[1741526894807,0.396,577.95,577.15,0.34653036]
[1741526895008,0.396,577.95,577.16,0.29048239]
[1741526897712,0.396,577.95,577.15,0.34653036]
[1741526897912,0.396,577.95,577.16,0.29049688]
[1741526902216,0.396,577.95,577.17,0.29046426]
[1741526902414,0.396,577.95,577.15,0.34653036]
[1741526902415,0.396,577.95,577.16,0.29046426]
[1741526902614,0.396,577.95,577.17,0.29046426]
[1741526906119,0.396,577.95,577.17,0.34651835]
[1741526922029,0.396,577.95,577.18,0.29041671]
[1741526922229,0.396,577.95,577.19,0.34650634]
[1741526922525,0.396,577.95,577.2,0.29041671]
[1741526923132,0.396,577.95,577.21,0.34649434]
[1741526923325,0.396,577.95,577.22,0.29041671]
[1741526923531,0.396,577.95,577.23,0.34648233]
[1741526923726,0.396,577.95,577.24,0.29041671]
[1741526923925,0.396,577.95,577.25,0.34647033]
[1741526924330,0.396,577.95,577.26,0.29041554]
[1741526924531,0.396,577.95,577.27,0.34645832]
[1741526924731,0.396,577.95,577.28,0.29041554]
[1741526924928,0.396,577.95,577.29,0.34644632]
[1741526925126,0.396,577.95,577.3,0.29041554]
[1741526925334,0.396,577.95,577.31,0.34643432]
[1741526925535,0.396,577.95,577.32,0.29041554]
[1741526925735,0.396,577.95,577.32,0.63684386]
[1741526926035,0.396,577.95,577.33,0.29041208]
[1741526927934,0.396,577.95,577.34,0.2904047]
[1741526928134,0.396,577.95,577.33,0.2904047]
[1741526928336,0.396,577.95,577.34,0.2904047]
[1741526928535,0.396,577.95,577.33,0.2904047]
[1741526928731,0.396,577.95,577.34,0.2904047]
[1741526928938,0.396,577.95,577.33,0.2904047]
[1741526929136,0.396,577.95,577.34,0.2904047]
[1741526929336,0.396,577.95,577.33,0.2904047]
[1741526931432,0.396,577.95,577.34,0.29037078]
[1741526931835,0.396,577.95,577.35,0.29037078]
[1741526932238,0.396,577.95,577.33,0.29037078]
[1741526932439,0.396,577.95,577.34,0.29037078]
[1741526932738,0.396,577.95,577.35,0.29037078]
[1741526932942,0.396,577.95,577.33,0.29037078]
[1741526933139,0.396,577.95,577.34,0.29037078]
[1741526933340,0.396,577.95,577.32,0.34642832]
[1741526933535,0.396,577.95,577.33,0.29037163]
[1741526936941,0.396,577.95,577.34,0.2903652]
[1741526937144,0.396,577.95,577.33,0.2903652]
[1741526937443,0.396,577.95,577.34,0.34641632]
[1741526937644,0.396,577.95,577.35,0.2903652]
[1741526937944,0.396,577.95,577.36,0.34640432]
[1741526938144,0.396,577.95,577.37,0.2903652]
[1741526938341,0.396,577.95,577.37,0.63676352]
[1741526938545,0.396,577.95,577.38,0.2903652]
[1741526940242,0.396,577.95,577.37,0.34639832]
[1741526945346,0.396,577.95,577.38,0.388]
[1741526949753,0.396,577.95,577.39,0.29033446]
[1741526951057,0.396,577.95,577.38,0.388]
[1741526951257,0.396,577.95,577.39,0.29029564]
[1741526953057,0.396,577.95,577.4,0.34638032]
[1741526953251,0.396,577.95,577.41,0.29029564]
[1741526954056,0.396,577.95,577.42,0.34636832]
[1741526954257,0.396,577.95,577.43,0.29029564]
[1741526954857,0.396,577.95,577.44,0.29027479]
[1741526955058,0.396,577.95,577.43,0.29027479]
[1741526956159,0.396,577.95,577.44,0.63663112]
[1741526956360,0.396,577.95,577.45,0.63662512]
[1741526956558,0.396,577.95,577.46,0.63661912]
[1741526956755,0.396,577.95,577.47,0.63661312]
[1741526956958,0.396,577.95,577.48,0.63660713]
[1741526957159,0.396,577.95,577.49,0.63660113]
[1741526957360,0.396,577.95,577.5,0.63659513]
[1741526957560,0.396,577.95,577.51,0.63658913]
[1741526957761,0.396,577.95,577.52,0.63658314]
[1741526957962,0.396,577.95,577.53,0.29027479]
[1741526960165,0.396,577.95,577.52,0.34630835]
[1741526960467,0.396,577.95,577.53,0.29029883]
[1741526960662,0.396,577.95,577.52,0.34630835]
[1741526961464,0.396,577.95,577.52,0.66130835]
[1741526967371,0.396,577.95,577.53,0.29027672]
[1741526968270,0.396,577.95,577.52,0.66130835]
[1741526971074,0.396,577.95,577.53,0.34630235]
[1741526977077,0.396,577.95,577.54,0.29022647]
[1741526977278,0.396,577.95,577.55,0.34629036]
[1741526977472,0.396,577.95,577.56,0.29022647]
[1741526977672,0.396,577.95,577.57,0.34627837]
[1741526978078,1.29047815,579.17,577.58,0.29022489]
[1741526978277,0.31787548,579.16,577.58,0.29022489]
[1741526978473,0.31787548,579.15,577.58,0.29022489]
[1741526978674,0.66321512,579.14,577.58,0.29022489]
[1741526978880,1.29047815,578.95,577.58,0.29022489]
[1741526979078,0.66333442,578.94,577.58,0.29022489]
[1741526979274,0.66334038,578.93,577.58,0.29022489]
[1741526979473,0.66334635,578.92,577.58,0.29022489]
[1741526979679,0.66335232,578.91,577.58,0.29022489]
[1741526979973,0.34548281,578.9,577.57,0.34627837]
[1741526980173,0.31787867,578.89,577.58,0.29022836]
[1741526980373,0.34549474,578.88,577.58,0.29022836]
[1741526980578,0.31787867,578.87,577.58,0.29022836]
[1741526980775,0.34550668,578.86,577.58,0.29022836]
[1741526980976,0.31787867,578.85,577.58,0.29022836]
[1741526981176,0.34551862,578.84,577.58,0.29022836]
[1741526981376,0.31787867,578.83,577.58,0.29022836]
[1741526981577,0.34553056,578.82,577.58,0.29022836]
[1741526981772,0.31787867,578.81,577.58,0.29022836]
[1741526982780,0.30100682,578.8,577.58,0.29022836]
[1741526983078,0.31787867,578.79,577.58,0.29022836]
[1741526983275,0.66342714,578.79,577.58,0.29022836]
[1741526983478,0.31787867,578.78,577.58,0.29022836]
[1741526984980,0.31787867,578.78,577.57,0.34627837]
[1741526987477,0.34554847,578.79,577.57,0.34627837]
[1741526987677,0.31787117,578.78,577.58,0.434]
[1741526988380,0.31787117,578.78,577.58,0.78027237]
[1741526988776,0.30100812,578.77,577.59,0.34626638]
[1741526988973,0.31787117,578.76,577.59,0.34626638]
[1741526989376,0.31787117,578.76,577.6,0.29020862]
[1741526989578,0.31787117,578.76,577.6,0.636469]
[1741526989780,0.31787117,578.76,577.61,0.29020862]
[1741526990882,0.30100812,578.77,577.6,0.34626038]
[1741526991083,0.31786237,578.76,577.61,0.29021238]
[1741526991576,0.31786237,578.78,577.61,0.29021238]
[1741526991780,0.34554847,578.79,577.61,0.29021238]
[1741526991781,0.30100161,578.75,577.61,0.29021238]
[1741526991982,0.31786237,578.74,577.61,0.29021238]
[1741526992882,0.30100161,578.75,577.6,0.34626038]
[1741526993082,0.31786237,578.74,577.61,0.29021236]
[1741526994784,0.30101202,578.73,577.61,0.29021236]
[1741526994982,0.31786237,578.72,577.61,0.29021236]
[1741526995483,0.72087639,578.71,577.62,0.29022623]
[1741526995684,0.31787639,578.7,577.61,0.29022623]
[1741526995884,0.31787639,578.7,577.62,0.29022623]
[1741526996079,0.31787639,578.7,577.61,0.29022623]
[1741526996280,0.31787639,578.7,577.62,0.29022623]
[1741526996777,0.31787639,578.7,577.63,0.29022623]
[1741526996978,0.403,578.71,577.6,0.34626038]
[1741526997282,0.31787606,578.7,577.6,0.34626038]
[1741526997880,0.403,578.71,577.6,0.34626038]
[1741527000390,0.31787773,578.7,577.6,0.34626038]
[1741527000585,0.61889496,578.7,577.6,0.34626038]
[1741527000789,0.31788942,578.69,577.6,0.34626038]
[1741527001692,0.61892227,578.68,577.6,0.34626038]
[1741527001887,0.30103285,578.68,577.6,0.34626038]
[1741527002085,0.31789387,578.67,577.6,0.34626038]
[1741527002691,0.30103285,578.68,577.6,0.34626038]
[1741527003495,0.31789982,578.67,577.6,0.34626038]
[1741527004989,0.31789982,578.67,577.61,0.382]
[1741527005693,0.31791542,578.66,577.61,0.382]
[1741527005889,0.31791542,578.65,577.61,0.382]
[1741527006095,0.31791542,578.64,577.61,0.382]
[1741527006294,0.31791542,578.67,577.61,0.382]
[1741527009698,0.403,578.71,577.61,0.382]
[1741527009699,0.30104197,578.66,577.61,0.382]
[1741527010098,0.31791542,578.65,577.61,0.382]
[1741527011098,0.30104197,578.66,577.61,0.382]
[1741527011301,0.31793403,578.65,577.61,0.382]
[1741527012298,0.31793919,578.64,577.61,0.382]
[1741527012605,0.30104197,578.66,577.61,0.382]
[1741527012804,0.31793801,578.65,577.61,0.382]
[1741527013005,0.30104197,578.66,577.61,0.382]
[1741527013403,0.31793317,578.65,577.61,0.382]
[1741527014908,0.30104197,578.66,577.61,0.382]
[1741527015104,0.31792182,578.65,577.61,0.382]
[1741527015502,0.31792182,578.7,577.61,0.382]
[1741527015702,0.30103936,578.64,577.61,0.382]
[1741527018310,0.403,578.71,577.61,0.382]
[1741527018509,0.31790551,578.7,577.61,0.382]
[1741527018705,0.61892795,578.7,577.61,0.382]
[1741527019105,0.31790551,578.69,577.61,0.382]
[1741527021620,0.61893967,578.68,577.61,0.382]
[1741527021816,0.31790551,578.67,577.61,0.382]
[1741527024721,0.30103676,578.66,577.61,0.382]
[1741527025119,0.31790551,578.65,577.61,0.382]
[1741527026721,0.333,578.64,577.62,0.29025455]
[1741527026917,0.31790551,578.63,577.62,0.29025455]
[1741527027117,0.31790551,578.63,577.61,0.382]
[1741527027714,0.30104197,578.62,577.61,0.382]
[1741527028120,0.31790551,578.61,577.61,0.382]
[1741527028718,0.31790551,578.61,577.62,0.29025456]
[1741527030721,0.333,578.64,577.61,0.382]
[1741527030722,0.30104327,578.6,577.61,0.382]
[1741527031022,0.31790514,578.59,577.62,0.29025459]
[1741527033623,0.30104587,578.58,577.62,0.29025459]
[1741527033822,0.31789049,578.57,577.63,0.29024007]
[1741527034025,0.31789049,578.57,577.62,0.29024007]
[1741527034219,0.31789049,578.57,577.63,0.29024007]
[1741527034421,0.30104587,578.58,577.61,0.382]
[1741527036320,0.333,578.64,577.61,0.382]
[1741527036622,0.31790625,578.63,577.61,0.382]
[1741527036925,0.61893129,578.63,577.61,0.382]
[1741527037129,0.31790625,578.62,577.61,0.382]
[1741527039722,0.61894952,578.61,577.61,0.382]
[1741527039922,0.31790625,578.6,577.61,0.382]
[1741527040930,0.348,578.59,577.61,0.382]
[1741527042629,0.30104587,578.58,577.61,0.382]
[1741527045429,0.348,578.59,577.61,0.382]
[1741527045732,0.30104848,578.57,577.61,0.382]
[1741527048432,0.348,578.59,577.61,0.382]
[1741527048631,0.30104848,578.56,577.61,0.382]
[1741527051534,0.348,578.59,577.61,0.382]
[1741527051735,0.30104848,578.55,577.61,0.382]
[1741527054332,0.348,578.59,577.61,0.382]
[1741527054532,0.30104848,578.54,577.61,0.382]
[1741527057434,0.348,578.59,577.61,0.382]
[1741527057835,0.30107452,578.53,577.61,0.382]
[1741527058730,0.31798956,578.52,577.61,0.382]
[1741527059637,0.31799855,578.51,577.61,0.382]
[1741527059831,0.31799855,578.52,577.61,0.382]
[1741527060031,0.31799855,578.51,577.61,0.382]
[1741527060238,0.31799855,578.5,577.61,0.382]
[1741527060536,0.31799855,578.49,577.61,0.382]
[1741527060737,0.30112923,578.49,577.61,0.382]
[1741527060933,0.31799855,578.48,577.61,0.382]
[1741527062538,0.31802193,578.47,577.61,0.382]
[1741527062836,1.29047815,578.43,577.61,0.382]
[1741527063040,0.31802193,578.42,577.28,0.30112533]
[1741527063239,0.31802193,578.42,577.29,0.34644632]
[1741527063442,0.31802242,578.41,577.3,0.29037026]
[1741527063637,0.30116572,578.41,577.3,0.63681058]
[1741527063841,0.31802242,578.4,577.31,0.29037026]
[1741527064244,0.30116572,578.41,577.3,0.34644032]
[1741527066141,0.30116572,578.41,577.3,0.66244032]
[1741527066343,0.348,578.59,577.3,0.66244032]
[1741527066646,0.30116442,578.4,577.3,0.66244032]
[1741527066945,0.348,578.59,577.3,0.66244032]
[1741527067942,1.29047815,579.17,577.3,0.66244032]
[1741527068145,0.31804277,578.78,577.3,0.66244032]
[1741527068344,0.34556638,578.76,577.3,0.66244032]
[1741527068542,0.31804277,578.75,577.3,0.66244032]
[1741527068746,0.34558429,578.73,577.3,0.66244032]
[1741527068940,0.31804277,578.72,577.3,0.66244032]
[1741527069146,0.34560221,578.7,577.3,0.66244032]
[1741527069446,0.31804277,578.69,577.3,0.66244032]
[1741527069746,0.34562012,578.67,577.3,0.66244032]
[1741527069948,0.31804277,578.66,577.3,0.66244032]
[1741527070247,0.34563207,578.65,577.3,0.66244032]
[1741527070640,0.31804326,578.64,577.3,0.66244032]
[1741527070845,0.34564402,578.63,577.3,0.66244032]
[1741527071146,0.31804326,578.62,577.3,0.66244032]
[1741527071446,0.34565596,578.61,577.3,0.66244032]
[1741527072147,0.31803053,578.6,577.3,0.66244032]
[1741527072347,0.34566791,578.59,577.3,0.66244032]
[1741527072546,0.31803053,578.58,577.3,0.66244032]
[1741527072746,0.34567986,578.57,577.3,0.66244032]
[1741527072945,0.31803053,578.56,577.3,0.66244032]
[1741527073141,0.34569181,578.55,577.3,0.66244032]
[1741527073546,0.31803527,578.54,577.3,0.66244032]
[1741527073742,0.34570376,578.53,577.3,0.66244032]
[1741527075651,0.30114487,578.52,577.3,0.66244032]
[1741527075949,0.34571571,578.51,577.3,0.66244032]
[1741527077147,0.31807636,578.5,577.3,0.66244032]
[1741527077347,0.34572767,578.49,577.3,0.66244032]
[1741527077543,0.31807636,578.48,577.3,0.66244032]
[1741527077748,0.34573962,578.47,577.3,0.66244032]
[1741527077946,0.31807636,578.46,577.3,0.66244032]
[1741527078152,0.34575157,578.45,577.3,0.66244032]
[1741527078351,0.31807636,578.44,577.3,0.66244032]
[1741527078747,0.31808261,578.43,577.3,0.66244032]
[1741527079645,0.66384614,578.43,577.3,0.66244032]
[1741527079845,0.31808261,578.42,577.3,0.66244032]
[1741527080845,0.31808261,578.42,577.31,0.2904016]
[1741527081453,0.34576353,578.43,577.3,0.66244032]
[1741527084754,0.30117484,578.42,577.3,0.66244032]
[1741527087466,0.34577548,578.41,577.3,0.66244032]
[1741527087661,0.64696987,578.41,577.3,0.66244032]
[1741527088367,0.3181243,578.4,577.3,0.66244032]
[1741527088964,0.34578744,578.39,577.3,0.66244032]
[1741527089964,0.31814247,578.38,577.3,0.66244032]
[1741527090262,0.3457994,578.37,577.3,0.66244032]
[1741527090467,0.31814247,578.36,577.3,0.66244032]
[1741527090666,0.34581135,578.35,577.3,0.66244032]
[1741527091067,0.31814247,578.34,577.3,0.66244032]
[1741527091265,0.34582331,578.33,577.3,0.66244032]
[1741527091466,0.31814247,578.32,577.3,0.66244032]
[1741527092070,0.34583527,578.31,577.3,0.66244032]
[1741527092272,0.31814247,578.3,577.3,0.66244032]
[1741527093772,0.30124915,578.29,577.3,0.66244032]
[1741527093965,0.31814247,578.28,577.3,0.66244032]
[1741527094170,0.30124915,578.29,577.3,0.66244032]
[1741527095071,0.34585321,578.28,577.3,0.66244032]
[1741527096775,0.30125175,578.27,577.3,0.66244032]
[1741527096975,0.34586518,578.26,577.3,0.66244032]
[1741527097173,0.31818289,578.25,577.3,0.66244032]